[Event "AUT Bundesliga 2024-25"]
[Site "Austria"]
[Date "2025.04.02"]
[Round "6.29"]
[White "Ivanisevic, Ivan"]
[Black "Lovrinovic, Christian"]
[Result "1-0"]
[Annotator "TA"]
[ECO "C13"]
[WhiteElo "2527"]
[BlackElo "2062"]
[PlyCount "49"]
[EventDate "2024.08.28"]
[EventType "team-tourn"]
[EventCountry "AUT"]
[SourceTitle "playchess.com"]
[Source "ChessBase"]
[SourceQuality "1"]
[TimeControl "40/5400+30:1800+30"]

{[%evp 20,49,41,26,113,103,108,110,124,133,127,108,118,68,70,61,382,387,386,364,371,373,373,360,368,345,361,345,427,425,975,968]} 1. d4 {[%emt 0:00:02]} Nf6 {[%emt 0:00:04]} 2. Bg5 {[%emt 0:00:08]} e6 {[%emt 0:04:12]} 3. Nd2 {[%emt 0:01:15]} d5 {[%emt 0:01:24]} 4. e4 {[%emt 0:00:22]} dxe4 {[%emt 0:01:02]} 5. Nxe4 {[%emt 0:00:07]} Be7 {[%emt 0:00:13]} 6. Nxf6+ {[%emt 0:01:11]} Bxf6 {[%emt 0:00:13]} 7. Bxf6 {[%emt 0:00:05]} Qxf6 {[%emt 0:00:03]} 8. Nf3 {[%emt 0:00:12]} Nd7 {[%emt 0:09:05]} 9. Qd2 {[%emt 0:01:56]} O-O {[%emt 0:10:42]} 10. O-O-O {[%emt 0:02:01]} c5 {[%emt 0:08:22]} 11. Qe3 {[%emt 0:04:40]} b6 {[%emt 0:24:25] C13: French: Classical System: 4 Bg5 Be7, Alekhine-Chatard Attack.} (11... a6 $11) 12. Bb5 $16 {[%emt 0:06:29]} cxd4 {[%emt 0:08:36]} 13. Rxd4 {[%emt 0:00:28][%cal Bd1d4,Bd4f4,Bf4f7,Bf7c7][%mdl 32]} Nc5 {[%emt 0:00:17] White is better.} 14. Ne5 {[%emt 0:01:24] Black is weak on the light squares} a5 {[%emt 0:06:42]} 15. Rhd1 $146 {[%emt 0:15:10] White has more active pieces.} (15. Rd6 Bb7 16. Rxb6 Rfc8 17. Nc6 Bxc6 18. Bxc6 Rab8 19. Qxc5 Rxb6 20. Qxb6 Qf4+ 21. Kb1 {1-0 Kotronias,V (2495)-Pastar,S (2359) Caissa Asli Gp-A 2022 (1)}) 15... Bb7 {[%emt 0:10:03][%cal Of6e7]} 16. Bc6 {[%emt 0:08:05]} ({Better is} 16. f3 $16) 16... Bxc6 $14 {[%emt 0:02:09]} 17. Nxc6 {[%emt 0:00:08]} Rac8 $2 {[%emt 0:00:17][%mdl 8192] [#] Loses the game.} ({Black should play} 17... Rae8 $14) 18. Rf4 $18 {[%emt 0:03:21]} Qg5 {[%emt 0:07:11]} 19. h4 {[%emt 0:00:31]} Qxg2 {[%emt 0:05:00]} 20. Ne7+ {[%emt 0:00:04]} Kh8 {[%emt 0:00:00]} 21. Nxc8 {[%emt 0:00:26]} Rxc8 {[%emt 0:00:00]} 22. Qd4 {[%emt 0:04:32][%cal Od4d8] Threatening mate with Qd8+!.} h5 {[%emt 0:00:00]} 23. Rxf7 {[%emt 0:02:00]} Qg6 {[%emt 0:00:00] [#] ( -> ...Nb3+)} 24. Rc7 $1 {[%emt 0:00:07]} Nb3+ {[%emt 0:00:00]} (24... Qh6+ 25. Kb1 Rxc7 26. Qd8+ Kh7 27. Qxc7) (24... Rxc7 $142 25. Qd8+ Kh7 26. Qxc7 a4 27. Qxb6 Qf5) 25. axb3 {[%emt 0:00:13] Weighted Error Value: White=0.08 (flawless) /Black=1.16  Loses game:     	---       	Black=1      Mistake:       	White=1     	Black=1      OK:         	White=4     	Black=6      Best:        	White=4     	---        Strong:       	White=1     	---} 1-0

[Event "AUT Bundesliga 2024-25"]
[Site "Austria"]
[Date "2025.04.02"]
[Round "6.30"]
[White "Karelina, Polina"]
[Black "Milanovic, Danilo"]
[Result "0-1"]
[Annotator "RC"]
[ECO "B01"]
[WhiteElo "1903"]
[BlackElo "2418"]
[PlyCount "54"]
[EventDate "2024.08.28"]
[EventType "team-tourn"]
[EventCountry "AUT"]
[SourceTitle "playchess.com"]
[Source "ChessBase"]
[SourceQuality "1"]
[TimeControl "40/5400+30:1800+30"]

1. e4 {[%emt 0:00:02]} d5 {[%emt 0:00:09]} 2. exd5 {[%emt 0:00:12]} Qxd5 {[%emt 0:00:07]} 3. Nc3 {[%emt 0:00:18]} Qd6 {[%emt 0:00:15]} 4. d4 {[%emt 0:01:49]} Nf6 {[%emt 0:00:11]} 5. Nf3 {[%emt 0:02:34]} c6 {[%emt 0:00:31]} 6. Bc4 {[%emt 0:03:36]} Bg4 {[%emt 0:04:33]} 7. Be3 {[%emt 0:03:32]} Nbd7 {[%emt 0:11:12]} 8. Qd2 {[%emt 0:06:36]} e6 {[%emt 0:20:39]} 9. a3 {[%emt 0:05:15]} Qc7 {[%emt 0:05:37]} 10. h3 {[%emt 0:15:50]} Bh5 {[%emt 0:09:50]} 11. Bf4 {[%emt 0:04:30]} Bd6 {[%emt 0:00:49]} 12. Bxd6 {[%emt 0:00:22]} Qxd6 {[%emt 0:00:01]} 13. g4 {[%emt 0:03:50]} Bg6 {[%emt 0:00:06]} 14. O-O-O {[%emt 0:00:21]} b5 {[%emt 0:07:59]} 15. Bd3 {[%emt 0:06:38]} a5 {[%emt 0:01:04]} 16. Bxg6 {[%emt 0:13:29]} hxg6 {[%emt 0:00:08]} 17. Ng5 {[%emt 0:01:15]} b4 {[%emt 0:08:31]} 18. Nce4 {[%emt 0:01:28]} Nxe4 {[%emt 0:01:27]} 19. Nxe4 {[%emt 0:00:06]} Qd5 {[%emt 0:00:08]} 20. Nc5 {[%emt 0:03:11]} Qa2 {[%emt 0:11:42]} 21. Qe3 {[%emt 0:01:14]} Nxc5 {[%emt 0:00:52]} 22. dxc5 {[%emt 0:00:13]} Qa1+ {[%emt 0:00:07]} 23. Kd2 {[%emt 0:00:12]} Qxb2 {[%emt 0:00:03]} 24. axb4 {[%emt 0:05:52]} Rd8+ {[%emt 0:08:45]} 25. Ke1 {[%emt 0:01:49]} Qxb4+ {[%emt 0:00:11]} 26. Ke2 {[%emt 0:04:54]} Qc4+ {[%emt 0:00:21]} 27. Ke1 {[%emt 0:02:35]} Rxd1+ {[%emt 0:00:15]} 0-1

[Event "AUT Bundesliga 2024-25"]
[Site "Austria"]
[Date "2025.04.02"]
[Round "6.31"]
[White "Nisipeanu, Liviu-Dieter"]
[Black "Saric, Ivan"]
[Result "1/2-1/2"]
[Annotator "TA"]
[ECO "B51"]
[WhiteElo "2579"]
[BlackElo "2659"]
[PlyCount "63"]
[EventDate "2024.08.28"]
[EventType "team-tourn"]
[EventCountry "AUT"]
[SourceTitle "playchess.com"]
[Source "ChessBase"]
[SourceQuality "1"]
[TimeControl "40/5400+30:1800+30"]

{[%evp 9,63,7,18,7,9,11,15,17,18,16,25,27,28,28,27,20,35,13,32,24,53,66,70,21,6,16,17,0,0,0,0,-12,7,-66,-8,-8,-2,-8,-12,-7,-13,-8,0,0,5,-12,-8,-10,0,0,0,0,0,0,0,0]} 1. e4 {[%emt 0:00:04]} c5 {[%emt 0:00:04]} 2. Nf3 {[%emt 0:00:05]} d6 {[%emt 0:00:09]} 3. Bb5+ {[%emt 0:00:07]} Nd7 {[%emt 0:00:29]} 4. a4 {[%emt 0:00:15]} Ngf6 {[%emt 0:00:07]} 5. Nc3 {[%emt 0:00:06]} a6 {[%emt 0:00:22]} 6. Be2 {[%emt 0:00:14] B51: Sicilian: Moscow Variation (3 Bb5+) without 3...Bd7.} b6 {[%emt 0:00:32]} 7. d4 {[%emt 0:00:27]} cxd4 {[%emt 0:00:03]} 8. Qxd4 {[%emt 0:00:06]} Bb7 {[%emt 0:00:21]} 9. O-O {[%emt 0:00:15]} e5 {[%emt 0:02:46]} 10. Qe3 {[%emt 0:03:04]} Be7 {[%emt 0:00:05][%cal Bf8e7,Be7c5,Bc5d4][%mdl 32]} 11. Nd2 {[%emt 0:27:11]} O-O {[%emt 0:08:05]} 12. Rd1 {[%emt 0:00:05]} Qc7 {[%emt 0:06:41]} 13. b3 {[%emt 0:16:01]} d5 {[%emt 0:11:43]} 14. exd5 {[%emt 0:00:13]} Bc5 $146 {[%emt 0:01:51] Black sacrificed a pawn} (14... Bb4 15. Nde4 Nxe4 16. Nxe4 f5 17. Bc4 Kh8 18. Ng5 Qd6 19. Ne6 Rf6 20. Bb2 Rg6 {0-1 Li,W (2096)-Doknjas,J (2203) Canada zt Kingston 2019 (9)}) 15. Qg3 {[%emt 0:00:27]} Bd4 {[%emt 0:06:35]} 16. Nde4 {[%emt 0:02:15]} (16. Nc4 $14 Bxc3 17. Qxc3) 16... Nxe4 $11 {[%emt 0:10:51]} (16... Nxd5 $2 17. Nxd5 (17. Bh6 g6 $18) 17... Bxd5 18. Bh6 $18 (18. Rxd4 Bxe4 19. Rxe4 Qxc2 $18)) 17. Nxe4 {[%emt 0:00:07]} Bxa1 {[%emt 0:00:37]} 18. Bh6 {[%emt 0:00:10][%csl Gh6][%cal Rg3g7]} g6 {[%emt 0:00:02][%cal Oc7c2]} 19. Rxa1 {[%emt 0:16:00]} ({Much weaker is} 19. Bxf8 Qxc2 20. Rxa1 Qxe2 $15) 19... Bxd5 $1 {[%emt 0:11:45]} 20. Nc3 {[%emt 0:03:51]} (20. Bxf8 $5 Qxc2 21. Nc3 (21. Bd3 Qb2 $11) 21... Rxf8 22. Nxd5 Qxe2 23. Qh3 $11) 20... Bb7 {[%emt 0:02:19]} (20... Be6 {simplifies} 21. Bxf8 Kxf8 22. Qf3 Rc8) 21. Bc4 {[%emt 0:04:05] [#]} (21. Bxf8 $11 Rxf8 22. Bc4) 21... b5 $1 {[%emt 0:06:09]} 22. Bxf8 {[%emt 0:01:01] The position is equal.} bxc4 {[%emt 0:00:03]} 23. Bh6 {[%emt 0:00:38]} cxb3 {[%emt 0:00:10]} 24. cxb3 {[%emt 0:00:05]} Rc8 {[%emt 0:00:48]} 25. Rc1 {[%emt 0:03:18]} f6 {[%emt 0:01:36]} 26. h4 {[%emt 0:01:16][%cal Oc3e4]} Qb6 {[%emt 0:05:06]} 27. Qg4 {[%emt 0:09:17]} f5 {[%emt 0:02:33]} 28. Qd1 {[%emt 0:00:07]} Nf6 {[%emt 0:06:57] ...Ng4 would now be deadly.} 29. Nd5 {[%emt 0:02:23]} Rxc1 {[%emt 0:00:09]} 30. Nxf6+ {[%emt 0:00:03]} (30. Nxb6 $2 {is the wrong capture.} Rxd1+ 31. Kh2 Ng4+ 32. Kg3 Nxh6 $19) 30... Qxf6 {[%emt 0:00:08]} 31. Bxc1 {[%emt 0:00:26] and Bg5 should not be overlooked} Qc6 {[%emt 0:03:02][%csl Gb7][%cal Rc6g2]} 32. f3 {[%emt 0:00:21] Weighted Error Value: White=0.10 (very precise) /Black=0.10 (very precise)   Mistake:       	White=2     	Black=1      Inaccurate:     	---       	Black=1      OK:         	White=16    	Black=11     Best:        	White=2     	Black=2      Strong:       	---       	Black=1} 1/2-1/2

[Event "AUT Bundesliga 2024-25"]
[Site "Austria"]
[Date "2025.04.02"]
[Round "6.32"]
[White "Brkic, Ante"]
[Black "Michalik, Peter"]
[Result "1/2-1/2"]
[Annotator "TA"]
[ECO "C43"]
[WhiteElo "2586"]
[BlackElo "2563"]
[PlyCount "77"]
[EventDate "2024.08.28"]
[EventType "team-tourn"]
[EventCountry "AUT"]
[SourceTitle "playchess.com"]
[Source "ChessBase"]
[SourceQuality "1"]
[TimeControl "40/5400+30:1800+30"]

{[%evp 12,77,0,0,0,0,4,0,0,0,0,0,0,0,19,41,29,33,65,62,73,67,72,45,103,88,123,150,166,155,179,173,175,162,170,116,112,144,122,122,99,0,0,0,0,0,0,0,0,0,0,0,0,0,0,0,0,0,0,0,0,0,0,0,0,0,0,0]} 1. e4 {[%emt 0:00:02]} e5 {[%emt 0:00:05]} 2. Nf3 {[%emt 0:00:05]} Nf6 {[%emt 0:00:05]} 3. d4 {[%emt 0:00:09]} Nxe4 {[%emt 0:00:07]} 4. Bd3 {[%emt 0:00:10]} d5 {[%emt 0:00:07]} 5. Nxe5 {[%emt 0:00:19]} Nd7 {[%emt 0:00:18]} 6. O-O {[%emt 0:00:46]} Nxe5 {[%emt 0:00:26]} 7. dxe5 {[%emt 0:00:05]} Nc5 {[%emt 0:01:03] C43: Petroff Defence: 3 d4.} 8. Be3 $1 {[%emt 0:00:07][%mdl 4] is recently more successful than 8.Be2.} Be7 {[%emt 0:05:39]} 9. f4 {[%emt 0:06:06]} Nxd3 {[%emt 0:07:01]} 10. Qxd3 {[%emt 0:00:05]} g6 {[%emt 0:04:36]} 11. Nc3 {[%emt 0:06:35]} c6 {[%emt 0:00:52]} 12. Ne2 {[%emt 0:00:10]} Bf5 {[%emt 0:02:35] Black is weak on the dark squares} 13. Qb3 {[%emt 0:11:12]} Qd7 {[%emt 0:06:39]} 14. Ng3 {[%emt 0:05:42]} b6 {[%emt 0:04:41]} 15. Qc3 $146 {[%emt 0:04:09]} (15. Nxf5 {feels hotter.} Qxf5 16. Qa4 Kd7 17. Rad1) (15. Rad1 Qe6 16. Ne2 c5 17. Rxd5 Bxc2 18. Qb5+ Kf8 19. Nc3 Kg7 20. Rd2 Bf5 21. h3 {½-½ Grandelius,N (2668)-Smith,A (2491) SWE-ch Ronneby 2018 (5)}) 15... Qe6 {[%emt 0:14:10]} 16. Nxf5 {[%emt 0:09:54]} gxf5 {[%emt 0:00:04]} 17. a4 {[%emt 0:00:50][%cal Ba2a4,Ba4a5][%mdl 32]} O-O-O {[%emt 0:11:41]} (17... c5 $14 18. Bf2 O-O) 18. Rfd1 {[%emt 0:15:47]} (18. a5 d4 19. Bxd4 Rxd4 20. axb6 (20. Qxd4 $2 Bc5 $19) 20... Rc4 21. bxa7 Kb7 22. Qb3+ Ka8 $17) 18... c5 {[%emt 0:09:48]} 19. a5 {[%emt 0:00:47]} Kb7 {[%emt 0:02:44] [#] Threatens to win with ...d4.} 20. Bf2 {[%emt 0:09:24]} Rhg8 {[%emt 0:10:51]} 21. axb6 {[%emt 0:03:52]} axb6 {[%emt 0:00:08]} 22. Qf3 {[%emt 0:00:19]} Qc6 {[%emt 0:01:08]} 23. Qd3 {[%emt 0:08:52]} (23. g3 $18) 23... h5 {[%emt 0:05:20][%cal Bh7h5,Bh5h4][%mdl 32]} 24. Qxf5 {[%emt 0:01:54] White is more active.} d4 {[%emt 0:02:29][%cal Bd5d4,Bd4d3,Bd3d2][%mdl 32]} 25. g3 {[%emt 0:00:20]} (25. Qxh5 $2 Qxg2#) 25... h4 {[%emt 0:00:44]} 26. Qxf7 {[%emt 0:07:48]} (26. Qh3 $16) 26... h3 $11 {[%emt 0:06:33][%csl Gh3][%cal Rc6g2] [#] The position is equal.} 27. Kf1 {[%emt 0:00:01][%cal Of7h7,Bg1f1,Bf1e2,Be2d2,Bd2c1,Bc1b1][%mdl 32] and Qh7! should not be overlooked} (27. Qxe7+ $2 {is the wrong capture.} Rd7 $19) 27... Qg2+ {[%emt 0:00:21]} 28. Ke2 {[%emt 0:00:05]} Qe4+ $1 {[%emt 0:00:55]} 29. Kd2 {[%emt 0:00:07]} d3 $1 {[%emt 0:01:18]} 30. Qxe7+ {[%emt 0:01:38]} (30. Kc1 $5 d2+ $8 31. Kb1 $11) 30... Kc6 {[%emt 0:00:01]} 31. Qe6+ {[%emt 0:01:34]} Kb7 {[%emt 0:00:06]} 32. Qe7+ {[%emt 0:00:48]} (32. Qxh3 $2 {is a self mate.} Qe2+ 33. Kc3 Qxc2#) 32... Kc6 {[%emt 0:00:04] ( -> ...Qe2+)} 33. Kc1 {[%emt 0:05:45]} d2+ $1 {[%emt 0:01:08]} 34. Kb1 $1 {[%emt 0:00:01]} Qe2 {[%emt 0:00:21][%csl LRd1,LRf2] Against Ra6} 35. Qe6+ {[%emt 0:00:26]} Kb7 {[%emt 0:00:10]} 36. Qe7+ {[%emt 0:00:28]} Kc6 {[%emt 0:00:02]} 37. Qe6+ {[%emt 0:00:21]} Kb7 {[%emt 0:00:01]} 38. Qf7+ {[%emt 0:01:43]} Kc6 {[%emt 0:00:08]} 39. Qe6+ {[%emt 0:00:54] Black defended with fortune.   Weighted Error Value: White=0.08 (flawless) /Black=0.04 (flawless)   Mistake:       	White=2     	Black=1      Inaccurate:     	White=1     	Black=2      OK:         	White=14    	Black=8      Best:        	White=1     	Black=7      Strong:       	White=1     	Black=3} 1/2-1/2

[Event "AUT Bundesliga 2024-25"]
[Site "Austria"]
[Date "2025.04.02"]
[Round "6.33"]
[White "Vogel, Roven"]
[Black "Martinovic, Sasa"]
[Result "1/2-1/2"]
[Annotator "TA"]
[ECO "E05"]
[WhiteElo "2557"]
[BlackElo "2549"]
[PlyCount "113"]
[EventDate "2024.08.28"]
[EventType "team-tourn"]
[EventCountry "AUT"]
[SourceTitle "playchess.com"]
[Source "ChessBase"]
[SourceQuality "1"]
[TimeControl "40/5400+30:1800+30"]

{[%evp 13,113,14,7,0,20,17,20,22,12,19,28,13,16,16,19,16,31,16,25,25,26,22,25,22,14,31,65,45,73,73,78,58,58,58,58,58,66,66,66,66,66,61,66,66,66,66,66,66,66,66,66,61,66,61,61,61,61,37,43,11,54,46,54,54,55,48,48,48,51,49,49,35,55,47,47,47,52,26,26,15,27,0,0,0,16,16,79,79,79,79,79,79,79,79,79,0,79,0,79,0,0,0]} 1. d4 {[%emt 0:00:05]} Nf6 {[%emt 0:00:04]} 2. c4 {[%emt 0:00:50]} e6 {[%emt 0:00:04]} 3. Nf3 {[%emt 0:00:12]} d5 {[%emt 0:00:04]} 4. g3 {[%emt 0:00:29]} Be7 {[%emt 0:00:06]} 5. Bg2 {[%emt 0:00:08]} O-O {[%emt 0:00:05]} 6. O-O {[%emt 0:00:40]} dxc4 {[%emt 0:00:08]} 7. Qc2 {[%emt 0:00:08]} b5 {[%emt 0:00:15]} 8. a4 {[%emt 0:02:11] E05: Open Catalan: 5 Nf3 Be7.} Bb7 {[%emt 0:00:20]} 9. axb5 {[%emt 0:00:28]} a6 {[%emt 0:00:06]} 10. bxa6 {[%emt 0:04:00]} (10. Qxc4 $2 {is the wrong capture.} axb5 11. Qxb5 Bc6 (11... Rxa1 $2 12. Qxb7 Rxb1 13. Qa8 $19) 12. Rxa8 Bxb5 $19) 10... Nxa6 {[%emt 0:00:11][%cal Bb8a6,Ba6b4,Bb4c2][%mdl 32]} 11. Qxc4 {[%emt 0:00:10]} Bd5 {[%emt 0:00:15] Black sacrificed a pawn} 12. Qc3 {[%emt 0:03:35]} c5 {[%emt 0:00:47]} 13. Be3 {[%emt 0:05:35]} Ne4 {[%emt 0:01:03]} 14. Qe1 {[%emt 0:05:39]} Nb4 {[%emt 0:01:08]} 15. Rxa8 {[%emt 0:00:53]} Qxa8 {[%emt 0:00:06]} 16. Nc3 {[%emt 0:01:05]} Nxc3 {[%emt 0:00:35]} 17. bxc3 {[%emt 0:01:43]} Nc2 {[%emt 0:00:14]} 18. Qd2 {[%emt 0:01:06]} Nxe3 {[%emt 0:00:24]} 19. Qxe3 {[%emt 0:00:08]} cxd4 {[%emt 0:00:23]} 20. cxd4 {[%emt 0:00:10]} Bf6 {[%emt 0:00:21] [#]} 21. Qf4 $1 {[%emt 0:03:17]} Qb8 {[%emt 0:00:18]} 22. e3 $5 $146 {[%emt 0:09:00][%mdl 8] New and interesting.} (22. Qg4 g6 23. e3 h5 24. Qf4 Qxf4 25. gxf4 Bxf3 26. Bxf3 Rd8 27. Rb1 Rd7 28. Kg2 {½-½ Andreikin,D (2729)-Nakamura,H (2760) Chess.com Rapid Wk18 Swiss 2022 (5)}) 22... Qxf4 {[%emt 0:03:42]} 23. gxf4 {[%emt 0:00:57]} Bxf3 {[%emt 0:00:08]} 24. Bxf3 $14 {[%emt 0:00:07][%mdl 4096] Endgame KRB-KRB. White is a pawn up.} g6 {[%emt 0:01:01]} 25. Rb1 {[%emt 0:00:32]} Re8 {[%emt 0:00:49]} 26. Be4 {[%emt 0:00:14]} Kg7 {[%emt 0:01:32]} 27. Rb5 {[%emt 0:00:14]} Re7 {[%emt 0:00:39]} 28. Kg2 {[%emt 1:00:54] White is more active.} Rc7 {[%emt 0:04:01]} 29. Kg3 {[%emt 0:00:00]} Re7 {[%emt 0:01:36]} 30. Bc2 {[%emt 0:01:00]} Rc7 {[%emt 0:01:20]} 31. Bb3 {[%emt 0:00:00]} Ra7 {[%emt 0:01:16]} 32. Kg4 {[%emt 0:00:00]} Rd7 {[%emt 0:01:54]} 33. d5 {[%emt 0:00:00]} exd5 {[%emt 0:00:30]} 34. Bxd5 {[%emt 0:00:00]} Rc7 {[%emt 0:12:42]} 35. f5 {[%emt 0:00:00]} Be7 {[%emt 0:11:36]} 36. e4 {[%emt 0:00:00]} Bc5 {[%emt 0:00:42]} 37. fxg6 {[%emt 0:00:00]} hxg6 {[%emt 0:00:26]} 38. f4 {[%emt 0:00:00]} Bg1 {[%emt 0:03:52]} 39. h4 {[%emt 0:00:00]} Be3 {[%emt 0:09:03]} 40. Rb3 {[%emt 0:00:00]} Bd2 {[%emt 0:00:54]} 41. Rd3 {[%emt 0:15:59]} Bc1 {[%emt 0:32:36]} 42. Rf3 {[%emt 0:05:34]} Bb2 {[%emt 0:13:02]} 43. Rf2 {[%emt 0:03:10]} Bd4 {[%emt 0:01:06]} 44. Rd2 {[%emt 0:00:15]} Be3 {[%emt 0:31:06]} 45. Rg2 {[%emt 0:12:32]} Rc1 {[%emt 0:00:00]} 46. Kf3 {[%emt 0:00:00]} Bc5 {[%emt 0:00:00]} 47. h5 {[%emt 0:00:00]} Rf1+ {[%emt 0:00:00]} 48. Kg4 {[%emt 0:00:00]} Rg1 {[%emt 0:00:00]} 49. Rxg1 {[%emt 0:00:00]} Bxg1 $11 {[%emt 0:00:00] [#] KB-KB. White is a pawn up.} (49... gxh5+ $1 $11 50. Kf3+ (50. Kxh5+ Bxg1 51. e5 Kf8 $11) 50... Bxg1) 50. h6+ $1 $16 {[%emt 0:00:00]} Kxh6 {[%emt 0:00:00]} (50... Kh7 51. Bxf7) 51. Bxf7 {[%emt 0:00:00]} Bb6 {[%emt 0:00:00]} 52. e5 {[%emt 0:00:00]} Kg7 {[%emt 0:00:00]} 53. Be8 {[%emt 0:00:00]} ({But not} 53. Bxg6 Kxg6 54. f5+ Kf7 $11) 53... Bc7 {[%emt 0:00:00]} 54. Kg5 {[%emt 0:00:00]} Bd8+ {[%emt 0:00:00]} 55. Kg4 {[%emt 0:00:00]} Bc7 $1 {[%emt 0:00:00]} 56. Kg5 {[%emt 0:00:00]} (56. Bc6 $16) 56... Bd8+ $11 {[%emt 0:00:00]} 57. Kg4 {[%emt 0:00:00] Weighted Error Value: White=0.08 (flawless) /Black=0.06 (flawless)   Mistake:       	White=1     	Black=1      Inaccurate:     	White=3     	Black=3      OK:         	White=8     	Black=23     Best:        	White=3     	Black=3      Strong:       	White=1     	Black=1      Brilliant:      	White=1     	---} 1/2-1/2